[Event "European Rapid Championship 2021"]
[Site "Katowice"]
[Date "2021.12.19"]
[Round "11.19"]
[White "Niedbala, Bartlomiej"]
[Black "Laurusas, Tomas"]
[Result "1/2-1/2"]
[ECO "A07"]
[WhiteElo "2131"]
[BlackElo "2553"]
[Annotator "ChessBase"]
[PlyCount "107"]
[EventDate "2021.12.18"]
[EventType "swiss"]
[EventCountry "POL"]
[SourceTitle "playchess.com"]
[Source "ChessBase"]
[SourceQuality "1"]
[TimeControl "900+10"]

1. Nf3 {[%emt 0:00:02]} Nf6 {[%emt 0:00:11]} 2. g3 {[%emt 0:00:01]} d5 {
[%emt 0:00:01]} 3. Bg2 {[%emt 0:00:02]} c6 {[%emt 0:00:06]} 4. O-O {[%emt 0:00:
04]} Bg4 {[%emt 0:00:04]} 5. h3 {[%emt 0:00:02]} Bh5 {[%emt 0:00:49]} 6. d3 {
[%emt 0:00:04]} e6 {[%emt 0:00:42]} 7. c4 {[%emt 0:00:14]} dxc4 {[%emt 0:01:12]
} 8. dxc4 {[%emt 0:00:06]} Qxd1 {[%emt 0:00:02]} 9. Rxd1 {[%emt 0:00:02]} Nbd7
{[%emt 0:00:30]} 10. Bf4 {[%emt 0:01:10]} a5 {[%emt 0:00:54]} 11. Nc3 {[%emt 0:
00:29]} Bb4 {[%emt 0:00:17]} 12. Na4 {[%emt 0:00:37]} Bg6 {[%emt 0:00:12]} 13.
a3 {[%emt 0:00:22]} Be7 {[%emt 0:00:15]} 14. Rd2 {[%emt 0:00:43]} Nc5 {[%emt 0:
01:45]} 15. Nxc5 {[%emt 0:00:53]} Bxc5 {[%emt 0:00:02]} 16. Ne5 {[%emt 0:00:37]
} Be4 {[%emt 0:00:50]} 17. Nd7 {[%emt 0:02:03]} Nxd7 {[%emt 0:00:14]} 18. Bxe4
{[%emt 0:00:02]} a4 {[%emt 0:01:38]} 19. Rad1 {[%emt 0:02:47]} O-O-O {[%emt 0:
00:26]} 20. h4 {[%emt 0:01:59]} h6 {[%emt 0:00:27]} 21. Bc2 {[%emt 0:01:09]}
Nb6 {[%emt 0:00:47]} 22. Rxd8+ {[%emt 0:00:02]} Rxd8 {[%emt 0:00:01]} 23. Rxd8+
{[%emt 0:00:01]} Kxd8 {[%emt 0:00:02]} 24. Be5 {[%emt 0:00:02]} f6 {[%emt 0:02:
11]} 25. Bc3 {[%emt 0:00:06]} Ke7 {[%emt 0:00:24]} 26. Kg2 {[%emt 0:00:39]} e5
{[%emt 0:00:02]} 27. e3 {[%emt 0:00:40]} e4 {[%emt 0:00:54]} 28. g4 {[%emt 0:
00:39]} Bd6 {[%emt 0:00:52]} 29. c5 {[%emt 0:00:48]} Bxc5 {[%emt 0:00:06]} 30.
Bxe4 {[%emt 0:00:01]} Nd7 {[%emt 0:00:59]} 31. Kf3 {[%emt 0:00:32]} Bd6 {
[%emt 0:00:49]} 32. Bc2 {[%emt 0:00:38]} Be5 {[%emt 0:01:20]} 33. Bxa4 {
[%emt 0:01:31]} Bxc3 {[%emt 0:00:01]} 34. bxc3 {[%emt 0:00:01]} Ne5+ {[%emt 0:
00:01]} 35. Kf4 {[%emt 0:00:21]} Nc4 {[%emt 0:00:27]} 36. Bc2 {[%emt 0:00:31]}
Nxa3 {[%emt 0:00:30]} 37. Bd3 {[%emt 0:00:01]} b5 {[%emt 0:00:00]} 38. Kf5 {
[%emt 0:00:45]} c5 {[%emt 0:00:27]} 39. Kg6 {[%emt 0:00:02]} Kf8 {[%emt 0:00:
04]} 40. g5 {[%emt 0:00:39]} fxg5 {[%emt 0:00:11]} 41. hxg5 {[%emt 0:00:02]}
hxg5 {[%emt 0:00:02]} 42. Kxg5 {[%emt 0:00:01]} b4 {[%emt 0:00:07]} 43. cxb4 {
[%emt 0:00:06]} cxb4 {[%emt 0:00:01]} 44. Kg6 {[%emt 0:00:34]} b3 {[%emt 0:00:
18]} 45. e4 {[%emt 0:00:03]} b2 {[%emt 0:01:06]} 46. f4 {[%emt 0:00:14]} Nc4 {
[%emt 0:00:12]} 47. e5 {[%emt 0:00:11]} Ne3 {[%emt 0:00:07]} 48. Bb1 {[%emt 0:
00:11]} Nd1 {[%emt 0:00:19]} 49. f5 {[%emt 0:00:05]} Nc3 {[%emt 0:00:02]} 50.
Bc2 {[%emt 0:00:04]} Nd5 {[%emt 0:00:09]} 51. f6 {[%emt 0:00:15]} gxf6 {
[%emt 0:00:06]} 52. exf6 {[%emt 0:00:05]} b1=Q {[%emt 0:00:06]} 53. Bxb1 {
[%emt 0:00:01]} Nxf6 {[%emt 0:00:01]} 54. Kxf6 {[%emt 0:00:02]} 1/2-1/2

[Event "European Rapid Championship 2021"]
[Site "Katowice"]
[Date "2021.12.19"]
[Round "11.19"]
[White "Rudecki, Bartosz"]
[Black "Liodakis, Konstantinos-Spyros"]
[Result "0-1"]
[ECO "C00"]
[WhiteElo "1820"]
[BlackElo "2114"]
[Annotator "NA"]
[PlyCount "56"]
[EventDate "2021.12.18"]
[EventType "swiss"]
[EventCountry "POL"]
[SourceTitle "playchess.com"]
[Source "ChessBase"]
[SourceQuality "1"]
[TimeControl "900+10"]

1. e4 {[%emt 0:00:01]} e6 {[%emt 0:00:01]} 2. b3 {[%emt 0:00:33]} d5 {[%emt 0:
00:15]} 3. Bb2 {[%emt 0:00:01]} Nf6 {[%emt 0:00:06]} 4. e5 {[%emt 0:00:26]}
Nfd7 {[%emt 0:00:01]} 5. d4 {[%emt 0:00:22]} c5 {[%emt 0:00:03]} 6. c3 {
[%emt 0:00:02]} Nc6 {[%emt 0:00:03]} 7. Nf3 {[%emt 0:00:07]} Be7 {[%emt 0:01:
03]} 8. Bd3 {[%emt 0:00:15]} O-O {[%emt 0:00:33]} 9. Nbd2 {[%emt 0:00:16]} f6 {
[%emt 0:00:05]} 10. exf6 Nxf6 {[%emt 0:00:02]} 11. O-O {[%emt 0:00:32]} Bd7 {
[%emt 0:00:14]} 12. Re1 {[%emt 0:00:21]} Qc7 {[%emt 0:00:15]} 13. h3 {[%emt 0:
00:11]} cxd4 {[%emt 0:01:09]} 14. cxd4 {[%emt 0:00:02]} Rac8 {[%emt 0:00:57]}
15. Rc1 {[%emt 0:00:25]} Qf4 {[%emt 0:00:40]} 16. Ne5 {[%emt 0:02:05]} Bb4 {
[%emt 0:00:54]} 17. Re2 {[%emt 0:02:04]} Nxd4 {[%emt 0:02:05]} 18. Bxd4 {
[%emt 0:00:21]} Qxd4 {[%emt 0:00:25]} 19. Ndf3 {[%emt 0:01:02]} Qf4 {[%emt 0:
00:15]} 20. Rec2 {[%emt 0:01:03]} Rxc2 {[%emt 0:00:04]} 21. Rxc2 {[%emt 0:00:
03]} Bd6 {[%emt 0:00:39]} 22. Qe1 {[%emt 0:01:32]} Be8 {[%emt 0:01:11]} 23. Re2
{[%emt 0:02:50]} Bh5 {[%emt 0:00:39]} 24. g3 {[%emt 0:00:40]} Qh6 {[%emt 0:00:
46]} 25. g4 {[%emt 0:00:17]} Be8 {[%emt 0:00:41]} 26. Kg2 {[%emt 0:00:42]} Nd7
{[%emt 0:00:56]} 27. g5 {[%emt 0:00:53]} Qh5 {[%emt 0:00:03]} 28. Ng4 {[%emt 0:
00:02]} Rxf3 {[%emt 0:00:25]} 0-1

[Event "European Rapid Championship 2021"]
[Site "Katowice"]
[Date "2021.12.19"]
[Round "11.20"]
[White "Durarbayli, Vasif"]
[Black "Sliwicka, Alicja"]
[Result "1-0"]
[ECO "B20"]
[WhiteElo "2532"]
[BlackElo "2303"]
[Annotator "ChessBase"]
[PlyCount "107"]
[EventDate "2021.12.18"]
[EventType "swiss"]
[EventCountry "POL"]
[SourceTitle "playchess.com"]
[Source "ChessBase"]
[SourceQuality "1"]
[TimeControl "900+10"]

1. e4 {[%emt 0:00:02]} c5 {[%emt 0:00:01]} 2. b3 {[%emt 0:00:00]} Nc6 {[%emt 0:
00:27]} 3. Bb2 {[%emt 0:00:02]} a6 {[%emt 0:00:31]} 4. Nf3 {[%emt 0:00:22]} d6
{[%emt 0:00:14]} 5. d4 {[%emt 0:00:37]} cxd4 {[%emt 0:00:07]} 6. Nxd4 {[%emt 0:
00:02]} Nf6 {[%emt 0:00:24]} 7. Nxc6 {[%emt 0:00:22]} bxc6 {[%emt 0:00:02]} 8.
e5 {[%emt 0:00:01]} Ng4 {[%emt 0:01:28]} 9. exd6 {[%emt 0:00:24]} Qxd6 {
[%emt 0:01:28]} 10. Qxd6 {[%emt 0:01:21]} exd6 {[%emt 0:00:01]} 11. Be2 {
[%emt 0:00:01]} Be6 {[%emt 0:01:05]} 12. O-O {[%emt 0:00:45]} Nf6 {[%emt 0:02:
30]} 13. Nc3 {[%emt 0:01:10]} Be7 {[%emt 0:00:16]} 14. Rad1 {[%emt 0:00:18]}
O-O {[%emt 0:00:09]} 15. Ba3 {[%emt 0:00:16]} Rfd8 {[%emt 0:00:17]} 16. Bf3 {
[%emt 0:01:54]} Rac8 {[%emt 0:00:06]} 17. Na4 {[%emt 0:00:54]} Kf8 {[%emt 0:00:
28]} 18. Rfe1 {[%emt 0:00:22]} g5 {[%emt 0:02:06]} 19. Bb4 {[%emt 0:01:27]} d5
{[%emt 0:03:26]} 20. Nc5 {[%emt 0:00:43]} g4 {[%emt 0:01:27]} 21. Nxe6+ {
[%emt 0:01:53]} fxe6 {[%emt 0:00:02]} 22. Rxe6 {[%emt 0:00:01]} Bxb4 {[%emt 0:
00:18]} 23. Rxf6+ {[%emt 0:00:02]} Ke7 {[%emt 0:00:58]} 24. Rf4 {[%emt 0:00:01]
} gxf3 {[%emt 0:00:12]} 25. Rxb4 {[%emt 0:00:01]} fxg2 {[%emt 0:00:05]} 26. Rh4
{[%emt 0:00:25]} Kd6 {[%emt 0:00:55]} 27. Rxh7 {[%emt 0:00:26]} Re8 {[%emt 0:
00:12]} 28. Rd2 {[%emt 0:01:13]} Re1+ {[%emt 0:00:03]} 29. Kxg2 {[%emt 0:00:01]
} Rg8+ {[%emt 0:00:01]} 30. Kh3 {[%emt 0:00:03]} Re6 {[%emt 0:00:25]} 31. Rh4 {
[%emt 0:01:04]} Rg1 {[%emt 0:00:20]} 32. f3 {[%emt 0:00:54]} Rf1 {[%emt 0:00:
13]} 33. Kg2 {[%emt 0:00:14]} Ree1 {[%emt 0:00:01]} 34. Rg4 {[%emt 0:01:06]} c5
{[%emt 0:00:07]} 35. Rg6+ {[%emt 0:00:40]} Ke5 {[%emt 0:00:13]} 36. Rg5+ {
[%emt 0:00:12]} Kf4 {[%emt 0:00:01]} 37. Rg4+ {[%emt 0:00:47]} Ke5 {[%emt 0:00:
03]} 38. c3 {[%emt 0:00:34]} Rh1 {[%emt 0:00:22]} 39. Kh3 {[%emt 0:00:10]} Rhf1
{[%emt 0:00:10]} 40. Rg5+ {[%emt 0:00:18]} Kf6 {[%emt 0:00:18]} 41. Rdxd5 {
[%emt 0:00:27]} Rxf3+ {[%emt 0:00:02]} 42. Kg4 {[%emt 0:00:18]} Rfe3 {[%emt 0:
00:10]} 43. Rdf5+ {[%emt 0:00:09]} Ke6 {[%emt 0:00:01]} 44. Rxc5 {[%emt 0:00:
02]} Rh1 {[%emt 0:00:14]} 45. Kf4 {[%emt 0:00:06]} Rd3 {[%emt 0:00:05]} 46. Ke4
{[%emt 0:00:12]} Rdd1 {[%emt 0:00:07]} 47. Rg6+ {[%emt 0:00:01]} Kf7 {[%emt 0:
00:02]} 48. Rg2 {[%emt 0:00:19]} Rhe1+ {[%emt 0:00:11]} 49. Kf5 {[%emt 0:00:02]
} Rf1+ {[%emt 0:00:05]} 50. Kg5 {[%emt 0:00:02]} Kg7 {[%emt 0:00:35]} 51. h4 {
[%emt 0:00:10]} Rd7 {[%emt 0:00:14]} 52. Rf5 {[%emt 0:00:02]} Rh1 {[%emt 0:00:
09]} 53. Kf4+ {[%emt 0:00:27]} Kh7 {[%emt 0:00:01]} 54. Rh5# 1-0

[Event "European Rapid Championship 2021"]
[Site "Katowice"]
[Date "2021.12.19"]
[Round "11.20"]
[White "Lach, Mateusz"]
[Black "Sliwicki, Damian"]
[Result "0-1"]
[ECO "E00"]
[WhiteElo "1661"]
[BlackElo "2107"]
[Annotator "NA"]
[PlyCount "62"]
[EventDate "2021.12.18"]
[EventType "swiss"]
[EventCountry "POL"]
[SourceTitle "playchess.com"]
[Source "ChessBase"]
[SourceQuality "1"]
[TimeControl "900+10"]

1. d4 {[%emt 0:00:01]} Nf6 {[%emt 0:00:07]} 2. c4 {[%emt 0:00:01]} e6 {[%emt 0:
00:01]} 3. e3 {[%emt 0:00:05]} b6 {[%emt 0:00:15]} 4. Nc3 {[%emt 0:00:04]} Bb7
{[%emt 0:00:02]} 5. a3 {[%emt 0:00:10]} d5 {[%emt 0:00:36]} 6. Nf3 {[%emt 0:00:
06]} Bd6 {[%emt 0:00:08]} 7. b4 {[%emt 0:00:07]} O-O {[%emt 0:00:03]} 8. c5 {
[%emt 0:00:03]} Be7 {[%emt 0:00:06]} 9. Ne5 {[%emt 0:00:15]} Nfd7 {[%emt 0:00:
19]} 10. Nxd7 {[%emt 0:00:12]} Nxd7 {[%emt 0:00:03]} 11. f4 {[%emt 0:00:04]}
Bh4+ {[%emt 0:02:13]} 12. g3 {[%emt 0:00:06]} Bf6 {[%emt 0:00:01]} 13. Bd3 {
[%emt 0:00:21]} bxc5 {[%emt 0:00:17]} 14. bxc5 {[%emt 0:01:26]} Nxc5 {[%emt 0:
00:07]} 15. a4 {[%emt 0:00:42]} Nxd3+ {[%emt 0:01:36]} 16. Qxd3 {[%emt 0:00:05]
} c5 {[%emt 0:00:44]} 17. Ba3 {[%emt 0:00:14]} Qa5 {[%emt 0:01:43]} 18. Bxc5 {
[%emt 0:00:58]} Rfc8 {[%emt 0:00:01]} 19. Rc1 {[%emt 0:00:42]} Rxc5 {[%emt 0:
00:26]} 20. dxc5 {[%emt 0:00:25]} d4 {[%emt 0:00:00]} 21. e4 {[%emt 0:00:36]}
dxc3 {[%emt 0:00:12]} 22. e5 {[%emt 0:04:18]} Bxh1 {[%emt 0:01:28]} 23. exf6 {
[%emt 0:00:05]} c2+ {[%emt 0:02:24]} 24. Qd2 {[%emt 0:00:04]} Qxd2+ {[%emt 0:
00:09]} 25. Kxd2 {[%emt 0:00:03]} Be4 {[%emt 0:00:02]} 26. Ke3 {[%emt 0:00:28]}
Bg6 {[%emt 0:00:12]} 27. Kd4 {[%emt 0:00:26]} Rd8+ {[%emt 0:00:02]} 28. Kc4 {
[%emt 0:00:02]} Rd1 {[%emt 0:00:43]} 29. c6 {[%emt 0:00:16]} Bd3+ {[%emt 0:00:
01]} 30. Kb4 {[%emt 0:00:33]} Rxc1 {[%emt 0:00:04]} 31. Ka5 {[%emt 0:00:02]}
Rb1 {[%emt 0:00:04]} 0-1

[Event "European Rapid Championship 2021"]
[Site "Katowice"]
[Date "2021.12.19"]
[Round "11.21"]
[White "Tazbir, Marcin"]
[Black "Ortega Ruiz, Jose Miguel"]
[Result "1-0"]
[ECO "A20"]
[WhiteElo "2514"]
[BlackElo "2150"]
[Annotator "ChessBase"]
[PlyCount "73"]
[EventDate "2021.12.18"]
[EventType "swiss"]
[EventCountry "POL"]
[SourceTitle "playchess.com"]
[Source "ChessBase"]
[SourceQuality "1"]
[TimeControl "900+10"]

1. c4 {[%emt 0:00:02]} e5 {[%emt 0:00:01]} 2. g3 {[%emt 0:00:01]} Nf6 {[%emt 0:
00:01]} 3. Bg2 {[%emt 0:00:01]} d5 {[%emt 0:00:03]} 4. cxd5 {[%emt 0:00:01]}
Nxd5 {[%emt 0:00:01]} 5. Nc3 {[%emt 0:00:03]} Nb6 {[%emt 0:00:02]} 6. e3 {
[%emt 0:00:02]} Be7 {[%emt 0:00:08]} 7. Nge2 {[%emt 0:00:02]} O-O {[%emt 0:00:
03]} 8. O-O {[%emt 0:00:02]} c6 {[%emt 0:00:23]} 9. f4 {[%emt 0:00:06]} exf4 {
[%emt 0:00:18]} 10. Nxf4 {[%emt 0:00:03]} N8d7 {[%emt 0:00:02]} 11. d4 {
[%emt 0:00:14]} Nf6 {[%emt 0:00:12]} 12. e4 {[%emt 0:00:20]} a5 {[%emt 0:00:19]
} 13. h3 {[%emt 0:00:18]} a4 {[%emt 0:00:14]} 14. Qd3 {[%emt 0:00:13]} a3 {
[%emt 0:00:27]} 15. b3 {[%emt 0:00:03]} Bb4 {[%emt 0:00:06]} 16. Bd2 {[%emt 0:
00:38]} Be6 {[%emt 0:00:54]} 17. Rad1 {[%emt 0:02:38]} Re8 {[%emt 0:00:37]} 18.
Bc1 {[%emt 0:01:03]} Ra5 {[%emt 0:00:15]} 19. Nxe6 {[%emt 0:00:28]} Rxe6 {
[%emt 0:00:07]} 20. e5 {[%emt 0:00:01]} Nfd7 {[%emt 0:01:20]} 21. Ne4 {[%emt 0:
00:09]} h6 {[%emt 0:00:34]} 22. Qf3 {[%emt 0:00:18]} Qe8 {[%emt 0:01:37]} 23.
h4 {[%emt 0:00:17]} c5 {[%emt 0:00:27]} 24. Bh3 {[%emt 0:00:17]} cxd4 {[%emt 0:
00:01]} 25. Bxe6 {[%emt 0:00:58]} Qxe6 {[%emt 0:00:02]} 26. Rxd4 {[%emt 0:00:
03]} Bf8 {[%emt 0:00:19]} 27. Qf5 {[%emt 0:00:30]} Rxe5 {[%emt 0:00:21]} 28.
Qxe6 {[%emt 0:00:02]} Rxe6 {[%emt 0:00:05]} 29. Kg2 {[%emt 0:00:22]} Rc6 {
[%emt 0:00:13]} 30. Be3 {[%emt 0:00:15]} Rc2+ {[%emt 0:00:36]} 31. Rf2 {
[%emt 0:00:03]} Rc6 {[%emt 0:00:13]} 32. Rfd2 {[%emt 0:00:23]} Re6 {[%emt 0:00:
34]} 33. Bf2 {[%emt 0:00:09]} f5 {[%emt 0:01:40]} 34. Nd6 {[%emt 0:00:06]} g6 {
[%emt 0:00:26]} 35. Nxb7 {[%emt 0:00:29]} Nf6 {[%emt 0:00:02]} 36. Rd8 {
[%emt 0:01:34]} Ne4 {[%emt 0:00:15]} 37. Nc5 {[%emt 0:00:17]} 1-0

[Event "European Rapid Championship 2021"]
[Site "Katowice"]
[Date "2021.12.19"]
[Round "11.21"]
[White "Kukula, Pawel"]
[Black "Krawczyk, Wojciech"]
[Result "1-0"]
[ECO "A40"]
[WhiteElo "2088"]
[BlackElo "1868"]
[Annotator "NA"]
[PlyCount "97"]
[EventDate "2021.12.18"]
[EventType "swiss"]
[EventCountry "POL"]
[SourceTitle "playchess.com"]
[Source "ChessBase"]
[SourceQuality "1"]
[TimeControl "900+10"]

1. d4 {[%emt 0:00:03]} e6 {[%emt 0:00:05]} 2. Nf3 {[%emt 0:00:06]} b6 {[%emt 0:
00:11]} 3. e4 {[%emt 0:00:03]} Bb7 {[%emt 0:00:01]} 4. Bd3 {[%emt 0:00:02]} d6
{[%emt 0:00:14]} 5. O-O {[%emt 0:00:05]} g6 {[%emt 0:00:05]} 6. c4 {[%emt 0:00:
09]} Bg7 {[%emt 0:00:02]} 7. Nc3 {[%emt 0:00:02]} h6 {[%emt 0:00:08]} 8. Be3 {
[%emt 0:00:11]} Nd7 {[%emt 0:00:01]} 9. Qd2 {[%emt 0:00:06]} e5 {[%emt 0:00:06]
} 10. d5 {[%emt 0:00:07]} Ngf6 {[%emt 0:00:16]} 11. h3 {[%emt 0:00:09]} g5 {
[%emt 0:00:13]} 12. Nh2 {[%emt 0:00:22]} O-O {[%emt 0:00:12]} 13. Be2 {[%emt 0:
00:13]} Nc5 {[%emt 0:00:10]} 14. Qc2 {[%emt 0:00:12]} Ne8 {[%emt 0:00:42]} 15.
b4 {[%emt 0:00:05]} Nd7 {[%emt 0:00:02]} 16. Bg4 {[%emt 0:00:11]} Ndf6 {
[%emt 0:00:11]} 17. Be2 {[%emt 0:00:51]} Bc8 {[%emt 0:00:12]} 18. c5 {[%emt 0:
00:04]} Qe7 {[%emt 0:03:37]} 19. Rfc1 {[%emt 0:01:43]} Nxe4 {[%emt 0:02:01]}
20. Nxe4 {[%emt 0:00:08]} f5 {[%emt 0:00:01]} 21. cxd6 {[%emt 0:00:50]} cxd6 {
[%emt 0:00:10]} 22. Nc3 {[%emt 0:00:06]} e4 {[%emt 0:00:17]} 23. Qd2 {[%emt 0:
00:42]} f4 {[%emt 0:01:39]} 24. Bd4 {[%emt 0:00:04]} f3 {[%emt 0:00:25]} 25.
Bf1 {[%emt 0:00:08]} Nf6 {[%emt 0:01:39]} 26. Re1 {[%emt 0:00:23]} Qf7 {
[%emt 0:01:04]} 27. Rad1 {[%emt 0:02:50]} Nh5 {[%emt 0:03:54]} 28. Bxg7 {
[%emt 0:00:18]} Qxg7 {[%emt 0:00:03]} 29. Qd4 {[%emt 0:01:39]} Qf7 {[%emt 0:00:
26]} 30. Nxe4 {[%emt 0:00:32]} fxg2 {[%emt 0:00:04]} 31. Bxg2 {[%emt 0:00:14]}
Qg6 {[%emt 0:00:40]} 32. Ng4 {[%emt 0:00:21]} Bxg4 {[%emt 0:00:11]} 33. hxg4 {
[%emt 0:00:01]} Nf4 {[%emt 0:00:01]} 34. Ng3 {[%emt 0:00:20]} Rae8 {[%emt 0:00:
01]} 35. Re3 {[%emt 0:01:24]} Qc2 {[%emt 0:00:36]} 36. Qd2 {[%emt 0:00:38]} Qc4
{[%emt 0:00:13]} 37. Rde1 {[%emt 0:00:40]} Rxe3 {[%emt 0:00:53]} 38. Rxe3 {
[%emt 0:00:26]} Nxg2 {[%emt 0:00:09]} 39. Kxg2 {[%emt 0:00:05]} Qxg4 {[%emt 0:
00:01]} 40. Qe2 {[%emt 0:01:01]} Qf4 {[%emt 0:00:38]} 41. Re4 {[%emt 0:00:25]}
Qf7 {[%emt 0:00:13]} 42. Re6 {[%emt 0:00:12]} Rc8 {[%emt 0:00:11]} 43. Qe4 {
[%emt 0:00:13]} Rf8 {[%emt 0:00:04]} 44. Rg6+ {[%emt 0:00:32]} Kh8 {[%emt 0:00:
02]} 45. Rxh6+ {[%emt 0:00:02]} Kg8 {[%emt 0:00:01]} 46. Qg6+ {[%emt 0:00:01]}
Qg7 {[%emt 0:00:19]} 47. Qxg7+ {[%emt 0:00:18]} Kxg7 {[%emt 0:00:01]} 48. Rxd6
{[%emt 0:00:01]} Rf4 {[%emt 0:00:01]} 49. Nh5+ {[%emt 0:00:02]} 1-0

[Event "European Rapid Championship 2021"]
[Site "Katowice"]
[Date "2021.12.19"]
[Round "11.22"]
[White "Mirzoev, Emil"]
[Black "Kubicka, Anna"]
[Result "1-0"]
[ECO "A27"]
[WhiteElo "2418"]
[BlackElo "2273"]
[Annotator "NA"]
[PlyCount "99"]
[EventDate "2021.12.18"]
[EventType "swiss"]
[EventCountry "POL"]
[SourceTitle "playchess.com"]
[Source "ChessBase"]
[SourceQuality "1"]
[TimeControl "900+10"]

1. c4 {[%emt 0:00:19]} e5 {[%emt 0:00:23]} 2. Nc3 {[%emt 0:00:02]} Nc6 {
[%emt 0:00:19]} 3. Nf3 {[%emt 0:00:03]} g6 {[%emt 0:00:15]} 4. d4 {[%emt 0:00:
34]} exd4 {[%emt 0:00:05]} 5. Nxd4 {[%emt 0:00:01]} Bg7 {[%emt 0:00:01]} 6.
Nxc6 {[%emt 0:00:01]} bxc6 {[%emt 0:00:01]} 7. g3 {[%emt 0:00:04]} Nf6 {
[%emt 0:00:32]} 8. Bg2 {[%emt 0:00:06]} O-O {[%emt 0:00:02]} 9. O-O {[%emt 0:
00:24]} Bb7 {[%emt 0:01:13]} 10. Qc2 {[%emt 0:00:10]} Qe7 {[%emt 0:00:31]} 11.
b3 {[%emt 0:00:15]} Rfd8 {[%emt 0:00:33]} 12. Bb2 {[%emt 0:01:01]} d5 {[%emt 0:
00:32]} 13. Rfd1 {[%emt 0:01:10]} Rab8 {[%emt 0:01:08]} 14. Na4 {[%emt 0:00:56]
} Bc8 {[%emt 0:01:17]} 15. cxd5 {[%emt 0:01:32]} cxd5 {[%emt 0:00:01]} 16. Rac1
{[%emt 0:01:50]} Ba6 {[%emt 0:07:42]} 17. e3 {[%emt 0:02:40]} Bb5 {[%emt 0:01:
49]} 18. Nc3 {[%emt 0:00:49]} Bc6 {[%emt 0:00:19]} 19. Ne2 {[%emt 0:00:15]} Bb5
{[%emt 0:00:45]} 20. Nd4 {[%emt 0:00:10]} Ne8 {[%emt 0:00:21]} 21. a4 {[%emt 0:
01:10]} Bd7 {[%emt 0:00:05]} 22. Bxd5 {[%emt 0:00:16]} Bxd4 {[%emt 0:00:33]}
23. Rxd4 {[%emt 0:00:16]} Bf5 {[%emt 0:00:03]} 24. Qc3 {[%emt 0:00:41]} Nf6 {
[%emt 0:00:17]} 25. Bg2 {[%emt 0:00:25]} Rb6 {[%emt 0:00:12]} 26. Qxc7 {
[%emt 0:00:40]} Qxc7 {[%emt 0:00:12]} 27. Rxc7 {[%emt 0:00:00]} Rdb8 {[%emt 0:
00:12]} 28. Rd1 {[%emt 0:02:08]} Ne8 {[%emt 0:00:12]} 29. Rxa7 {[%emt 0:01:09]}
Rxb3 {[%emt 0:00:04]} 30. Be5 {[%emt 0:00:09]} Rb1 {[%emt 0:00:03]} 31. Rf1 {
[%emt 0:00:01]} Rxf1+ {[%emt 0:00:16]} 32. Kxf1 {[%emt 0:00:06]} Rd8 {[%emt 0:
00:16]} 33. Ra8 {[%emt 0:00:16]} Bd3+ {[%emt 0:00:10]} 34. Ke1 {[%emt 0:00:02]}
Rxa8 {[%emt 0:00:06]} 35. Bxa8 {[%emt 0:00:01]} f6 {[%emt 0:00:03]} 36. Bb8 {
[%emt 0:00:08]} Ba6 {[%emt 0:00:08]} 37. Kd2 {[%emt 0:00:35]} Kf7 {[%emt 0:00:
02]} 38. Kc3 {[%emt 0:00:00]} f5 {[%emt 0:00:21]} 39. Be5 {[%emt 0:00:07]} Ke6
{[%emt 0:00:04]} 40. Kd4 {[%emt 0:00:24]} h6 {[%emt 0:00:13]} 41. Bc6 {[%emt 0:
00:10]} Nd6 {[%emt 0:00:03]} 42. Bxd6 {[%emt 0:00:22]} Kxd6 {[%emt 0:00:01]}
43. Be8 {[%emt 0:00:02]} g5 {[%emt 0:00:02]} 44. f4 {[%emt 0:00:02]} Bc8 {
[%emt 0:00:36]} 45. Bb5 {[%emt 0:00:04]} Bb7 {[%emt 0:00:04]} 46. Bd3 {[%emt 0:
00:04]} Bc8 {[%emt 0:00:03]} 47. a5 {[%emt 0:00:05]} Bd7 {[%emt 0:00:33]} 48.
a6 {[%emt 0:00:04]} Ke6 {[%emt 0:00:04]} 49. Bc4+ {[%emt 0:00:19]} Kd6 {
[%emt 0:00:02]} 50. Bd5 {[%emt 0:00:09]} 1-0

[Event "European Rapid Championship 2021"]
[Site "Katowice"]
[Date "2021.12.19"]
[Round "11.22"]
[White "Jedrusik, Adam"]
[Black "Rigopoulos-Tsigkos, Alexandros"]
[Result "1-0"]
[ECO "D00"]
[WhiteElo "1769"]
[BlackElo "2076"]
[Annotator "NA"]
[PlyCount "111"]
[EventDate "2021.12.18"]
[EventType "swiss"]
[EventCountry "POL"]
[SourceTitle "playchess.com"]
[Source "ChessBase"]
[SourceQuality "1"]
[TimeControl "900+10"]

1. d4 {[%emt 0:00:02]} d5 {[%emt 0:02:22]} 2. Bf4 {[%emt 0:00:02]} Nf6 {
[%emt 0:00:05]} 3. e3 {[%emt 0:00:01]} c5 {[%emt 0:00:02]} 4. c3 {[%emt 0:00:
01]} Nc6 {[%emt 0:00:01]} 5. Nd2 {[%emt 0:00:02]} e6 {[%emt 0:00:18]} 6. Ngf3 {
[%emt 0:00:03]} Bd6 {[%emt 0:00:02]} 7. Bg3 {[%emt 0:00:02]} O-O {[%emt 0:00:
16]} 8. Bb5 {[%emt 0:00:02]} a6 {[%emt 0:00:40]} 9. Bxc6 {[%emt 0:00:30]} bxc6
{[%emt 0:00:02]} 10. Ne5 {[%emt 0:00:28]} Qc7 {[%emt 0:00:29]} 11. Qa4 {
[%emt 0:00:07]} Bb7 {[%emt 0:00:14]} 12. O-O {[%emt 0:03:06]} Nh5 {[%emt 0:00:
17]} 13. Nd3 {[%emt 0:01:40]} Nxg3 {[%emt 0:00:28]} 14. hxg3 {[%emt 0:00:02]}
c4 {[%emt 0:02:29]} 15. Nc5 {[%emt 0:00:01]} Bxc5 {[%emt 0:00:26]} 16. dxc5 {
[%emt 0:00:02]} e5 {[%emt 0:00:08]} 17. Qc2 {[%emt 0:02:57]} f5 {[%emt 0:00:17]
} 18. b4 {[%emt 0:00:57]} Qe7 {[%emt 0:00:55]} 19. Rfe1 {[%emt 0:00:53]} Rae8 {
[%emt 0:00:50]} 20. f4 {[%emt 0:00:30]} a5 {[%emt 0:00:49]} 21. a3 {[%emt 0:00:
01]} axb4 {[%emt 0:01:47]} 22. axb4 {[%emt 0:00:02]} e4 {[%emt 0:01:23]} 23.
Kf2 {[%emt 0:00:43]} Ra8 {[%emt 0:00:24]} 24. Qb2 {[%emt 0:00:19]} Ba6 {
[%emt 0:00:42]} 25. Ra5 {[%emt 0:01:06]} Bb5 {[%emt 0:00:14]} 26. Rea1 {
[%emt 0:00:46]} Rxa5 {[%emt 0:00:01]} 27. Rxa5 {[%emt 0:00:01]} g5 {[%emt 0:00:
15]} 28. Nf1 {[%emt 0:00:53]} Re8 {[%emt 0:00:07]} 29. Qe2 {[%emt 0:00:39]} Qf7
{[%emt 0:00:35]} 30. Qd2 {[%emt 0:00:40]} Qg7 {[%emt 0:01:57]} 31. Qd4 {
[%emt 0:00:25]} Qg6 {[%emt 0:00:56]} 32. Ra7 {[%emt 0:00:40]} h5 {[%emt 0:00:
22]} 33. Qd1 {[%emt 0:01:05]} h4 {[%emt 0:00:20]} 34. gxh4 {[%emt 0:00:36]}
gxh4 {[%emt 0:00:08]} 35. g3 {[%emt 0:00:26]} h3 {[%emt 0:00:16]} 36. Nh2 {
[%emt 0:00:12]} Rf8 {[%emt 0:00:01]} 37. g4 {[%emt 0:00:25]} d4 {[%emt 0:00:13]
} 38. Qxd4 {[%emt 0:00:24]} fxg4 {[%emt 0:00:09]} 39. Kg3 {[%emt 0:00:01]} Rf7
{[%emt 0:00:19]} 40. Qd8+ {[%emt 0:00:20]} Kg7 {[%emt 0:00:13]} 41. Qd4+ {
[%emt 0:00:01]} Kg8 {[%emt 0:00:03]} 42. Qd8+ {[%emt 0:00:01]} Kg7 {[%emt 0:00:
01]} 43. Qd4+ {[%emt 0:00:01]} Kg8 {[%emt 0:00:18]} 44. Ra8+ {[%emt 0:00:29]}
Rf8 {[%emt 0:00:02]} 45. Rxf8+ {[%emt 0:00:21]} Kxf8 {[%emt 0:00:02]} 46. Qd6+
{[%emt 0:00:05]} Qxd6 {[%emt 0:00:23]} 47. cxd6 {[%emt 0:00:02]} c5 {[%emt 0:
00:07]} 48. bxc5 {[%emt 0:00:03]} Bd7 {[%emt 0:00:02]} 49. c6 {[%emt 0:00:21]}
Bf5 {[%emt 0:00:03]} 50. Nf1 {[%emt 0:00:18]} Kf7 {[%emt 0:00:13]} 51. Nd2 {
[%emt 0:00:10]} Be6 {[%emt 0:00:28]} 52. Nxe4 {[%emt 0:00:03]} Bd5 {[%emt 0:00:
03]} 53. Ng5+ {[%emt 0:00:05]} Ke8 {[%emt 0:00:09]} 54. c7 {[%emt 0:00:09]} Kd7
{[%emt 0:00:17]} 55. e4 {[%emt 0:00:01]} Bg8 {[%emt 0:00:13]} 56. f5 {[%emt 0:
00:15]} 1-0